{"text_format":"1","workbook":"xlsx","n_sheets":4,"sheets":["Home","Grade Calculator","Sectors","Lookup"],"not_rendered":{"charts":0,"images":1,"macros":1,"external_links":0,"defined_names":1,"comments":0,"pivot_tables":0},"unopened":[],"bounds":{"document_bytes":16777216,"sheet_cells":100000,"rows_first":2000,"rows_last":500,"rows_between":2000,"halvings":0,"cell_chars":16384,"cell_head_chars":4096},"cells_cut":0,"cells_raw":0,"read":"whole","date_system":"1900"}

{"sheet":"Home","index":0,"n_rows":15,"n_cols":8,"rows_kept":15,"cut":false,"hidden":false,"merged":[]}
[]
[]
[]
[]
[]
[]
[]
[]
[]
[]
[]
[]
[]
[]
[null,null,null,null,{"$f":"TODAY()","v":"2023-11-22"},{"$f":"IF(MONTH(E15)>=9,YEAR(E15)+1,YEAR(E15))","v":2024},null,false]

{"sheet":"Grade Calculator","index":1,"n_rows":15,"n_cols":12,"rows_kept":15,"cut":false,"hidden":true,"merged":[[7,6,8,6],[9,6,10,6],[11,6,12,6],[7,2,8,2],[9,2,10,2],[11,2,12,2],[7,3,8,3],[9,3,10,3],[11,3,12,3]]}
[]
[]
[]
[]
[]
[null,null,null,"UMS"]
[null,null,null,{"$f":"IFERROR(IF($B$5=\"\",\"\",VLOOKUP($B$5,Lookup!$A$1:$H$14,MATCH(\"Max UMS\",Lookup!$A$1:$H$1,0),FALSE)),\"\")","v":""},null,"UMS Points","Component Grade",null,null,"UMS_120","UMS_90","UMS_80"]
[null,{"$f":"IFERROR(\"Component 1 (max. \"&IF($B$5=\"\",\"\",VLOOKUP($B$5,Lookup!$A$1:$H$14,MATCH(\"Comp 1 UMS\",Lookup!$A$1:$H$1,0),FALSE))&\" UMS Points)\",\"\")","v":"Component 1 (max.  UMS Points)"},{"$f":"IFERROR(IF($B$5=\"\",\"\",VLOOKUP($B$5,Lookup!$A$1:$D$14,MATCH(\"Comp 1\",Lookup!$A$1:$D$1,0),FALSE)),\"\")","v":""},{"$f":"IFERROR(IF($B$5=\"\",\"\",VLOOKUP($B$5,Lookup!$A$1:$H$14,MATCH(\"Comp 1 UMS\",Lookup!$A$1:$H$1,0),FALSE)),\"\")","v":""},"C1",null,{"$f":"IFERROR(IF($D8=\"\",\"\",VLOOKUP($D8&$E8,$I$7:$L$13,MATCH(\"UMS_\"&D8,$I$7:$L$7,0),FALSE)),\"\")","v":""},null,{"$f":"D8&E8","v":"C1"},{"$f":"IF($D8=120,VLOOKUP($F8,Lookup!$U$1:$V$9,MATCH(\"Comp Grade\",Lookup!$U$1:$V$1,0),TRUE),\"\")","v":""},{"$f":"IF($D8=90,VLOOKUP($F8,Lookup!$X$1:$Y$9,MATCH(\"Comp Grade\",Lookup!$X$1:$Y$1,0),TRUE),\"\")","v":""},{"$f":"IF($D8=80,VLOOKUP($F8,Lookup!$AA$1:$AB$9,MATCH(\"Comp Grade\",Lookup!$AA$1:$AB$1,0),TRUE),\"\")","v":""}]
[null,{"$f":"IFERROR(IF($B$5=\"\",\"\",VLOOKUP($B$5,Lookup!$J$1:$M$14,MATCH(\"Component 1\",Lookup!$J$1:$M$1,0),FALSE)),\"\")","v":""}]
[null,{"$f":"IFERROR(\"Component 2 (max. \"&IF($B$5=\"\",\"\",VLOOKUP($B$5,Lookup!$A$1:$H$14,MATCH(\"Comp 2 UMS\",Lookup!$A$1:$H$1,0),FALSE))&\" UMS Points)\",\"\")","v":"Component 2 (max.  UMS Points)"},{"$f":"IFERROR(IF($B$5=\"\",\"\",VLOOKUP($B$5,Lookup!$A$1:$D$14,MATCH(\"Comp 2\",Lookup!$A$1:$D$1,0),FALSE)),\"\")","v":""},{"$f":"IFERROR(IF($B$5=\"\",\"\",VLOOKUP($B$5,Lookup!$A$1:$H$14,MATCH(\"Comp 2 UMS\",Lookup!$A$1:$H$1,0),FALSE)),\"\")","v":""},"C2",null,{"$f":"IFERROR(IF($D10=\"\",\"\",VLOOKUP($D10&$E10,$I$7:$L$13,MATCH(\"UMS_\"&D10,$I$7:$L$7,0),FALSE)),\"\")","v":""},null,{"$f":"D10&E10","v":"C2"},{"$f":"IF($D10=120,VLOOKUP($F10,Lookup!$U$1:$V$9,MATCH(\"Comp Grade\",Lookup!$U$1:$V$1,0),TRUE),\"\")","v":""},{"$f":"IF($D10=90,VLOOKUP($F10,Lookup!$X$1:$Y$9,MATCH(\"Comp Grade\",Lookup!$X$1:$Y$1,0),TRUE),\"\")","v":""},{"$f":"IF($D10=80,VLOOKUP($F10,Lookup!$AA$1:$AB$9,MATCH(\"Comp Grade\",Lookup!$AA$1:$AB$1,0),TRUE),\"\")","v":""}]
[null,{"$f":"IFERROR(IF($B$5=\"\",\"\",VLOOKUP($B$5,Lookup!$J$1:$M$14,MATCH(\"Component 2\",Lookup!$J$1:$M$1,0),FALSE)),\"\")","v":""}]
[null,{"$f":"IFERROR(\"Component 3 (max. \"&IF($B$5=\"\",\"\",VLOOKUP($B$5,Lookup!$A$1:$H$14,MATCH(\"Comp 3 UMS\",Lookup!$A$1:$H$1,0),FALSE))&\" UMS Points)\",\"\")","v":"Component 3 (max.  UMS Points)"},{"$f":"IFERROR(IF($B$5=\"\",\"\",VLOOKUP($B$5,Lookup!$A$1:$D$14,MATCH(\"Comp 3\",Lookup!$A$1:$D$1,0),FALSE)),\"\")","v":""},{"$f":"IFERROR(IF($B$5=\"\",\"\",VLOOKUP($B$5,Lookup!$A$1:$H$14,MATCH(\"Comp 3 UMS\",Lookup!$A$1:$H$1,0),FALSE)),\"\")","v":""},"C3",null,{"$f":"IFERROR(IF($D12=\"\",\"\",VLOOKUP($D12&$E12,$I$7:$L$13,MATCH(\"UMS_\"&D12,$I$7:$L$7,0),FALSE)),\"\")","v":""},null,{"$f":"D12&E12","v":"C3"},{"$f":"IF($D12=120,VLOOKUP($F12,Lookup!$U$1:$V$9,MATCH(\"Comp Grade\",Lookup!$U$1:$V$1,0),TRUE),\"\")","v":""},{"$f":"IF($D12=90,VLOOKUP($F12,Lookup!$X$1:$Y$9,MATCH(\"Comp Grade\",Lookup!$X$1:$Y$1,0),TRUE),\"\")","v":""},{"$f":"IF($D12=80,VLOOKUP($F12,Lookup!$AA$1:$AB$9,MATCH(\"Comp Grade\",Lookup!$AA$1:$AB$1,0),TRUE),\"\")","v":""}]
[null,{"$f":"IFERROR(IF($B$5=\"\",\"\",VLOOKUP($B$5,Lookup!$J$1:$M$14,MATCH(\"Component 3\",Lookup!$J$1:$M$1,0),FALSE)),\"\")","v":""}]
[null,null,null,null,null,"Qualification UMS","Qualification Grade",null,null,"UMS_200","UMS_300"]
[null,null,null,null,null,{"$f":"SUM(F8:F12)","v":0},{"$f":"IFERROR(IF($D$7=\"\",\"\",VLOOKUP($D$7,$I$14:$K$15,MATCH(\"UMS_\"&$D$7,$I$14:$K$14,0),FALSE)),\"\")","v":""},null,{"$f":"D7","v":""},{"$f":"IF($D$7=200,IF(AND(G8=\"L2D\",G10=\"L2D\"),VLOOKUP($F$15,Lookup!$R$1:$S$202,MATCH(\"Qual Grade\",Lookup!$R$1:$S$1,0),TRUE),VLOOKUP($F$15,Lookup!$R$1:$S$181,MATCH(\"Qual Grade\",Lookup!$R$1:$S$1,0),TRUE)),\"\")","v":""},{"$f":"IF($D$7=300,IF(AND(G8=\"L2D\",G10=\"L2D\",G12=\"L2D\"),VLOOKUP($F$15,Lookup!$O$1:$P$302,MATCH(\"Qual Grade\",Lookup!$O$1:$P$1,0),TRUE),VLOOKUP($F$15,Lookup!$O$1:$P$271,MATCH(\"Qual Grade\",Lookup!$O$1:$P$1,0),TRUE)),\"\")","v":""}]

{"sheet":"Sectors","index":2,"n_rows":12,"n_cols":1,"rows_kept":12,"cut":false,"hidden":true,"merged":[]}
["Animal Care"]
["Art and Design Practice"]
["Child Development"]
["Construction"]
["Creative Media Production"]
["Digital Information Technology"]
["Enterprise"]
["Health and Social Care"]
["Music Practice"]
["Performing Arts"]
["Sport"]
["Travel and Tourism"]

{"sheet":"Lookup","index":3,"n_rows":302,"n_cols":28,"rows_kept":302,"cut":false,"hidden":true,"merged":[]}
["Sector","Comp 1","Comp 2","Comp 3","Comp 1 UMS","Comp 2 UMS","Comp 3 UMS","Max UMS",null,"Sector","Component 1","Component 2","Component 3",null,"UMS_300","Qual Grade",null,"UMS_200","Qual Grade",null,"UMS_120","Comp Grade",null,"UMS_90","Comp Grade",null,"UMS_80","Comp Grade"]
["Animal Care","Internal","Internal","External",90,90,120,300,null,"Animal Care","Animal Handling","Animal Housing and Accommodation","Animal Health and Welfare",null,0,"U",null,0,"U",null,0,"U",null,0,"U",null,0,"U"]
["Art and Design Practice","Internal","External",null,120,80,null,200,null,"Art and Design Practice","Creative Practice in Art & Design","Responding to a Brief",null,null,1,"U",null,1,"U",null,36,"L1P",null,27,"L1P",null,24,"L1P"]
["Child Development","Internal","Internal","External",90,90,120,300,null,"Child Development","Children’s Growth & Development","Learning Through Play","Supporting Children to Play, Learn & Develop",null,2,"U",null,2,"U",null,48,"L1M",null,36,"L1M",null,32,"L1M"]
["Construction","External","Internal","Internal",120,90,90,300,null,"Construction","Construction Technology","Construction in Practice","Construction and Design",null,3,"U",null,3,"U",null,60,"L1D",null,45,"L1D",null,40,"L1D"]
["Creative Media Production","Internal","Internal","External",90,90,120,300,null,"Creative Media Production","Exploring Media Products","Developing Digital Media Production Skills","Create a Media Product in Response to a Brief",null,4,"U",null,4,"U",null,72,"L2P",null,54,"L2P",null,48,"L2P"]
["Digital Information Technology","Internal","Internal","External",90,90,120,300,null,"Digital Information Technology","Exploring User Interface Design Principles and Project Planning Techniques","Collecting, Presenting and Interpreting Data","Effective Digital Working Practices",null,5,"U",null,5,"U",null,84,"L2M",null,63,"L2M",null,56,"L2M"]
["Engineering","Internal","Internal","External",90,90,120,300,null,"Engineering","Exploring Engineering Specialisms and Design Applications","Investigating an Engineering Product","Responding to an Engineering Brief",null,6,"U",null,6,"U",null,96,"L2D",null,72,"L2D",null,64,"L2D"]
["Enterprise","Internal","Internal","External",90,90,120,300,null,"Enterprise","Exploring Enterprises","Planning and Presenting a MicroEnterprise Idea","Marketing and Finance for Enterprise",null,7,"U",null,7,"U",null,120,"L2D",null,90,"L2D",null,80,"L2D"]
["Health and Social Care","Internal","Internal","External",90,90,120,300,null,"Health and Social Care","Human Lifespan Development","Health and Social Care Services and Values","Health and Wellbeing",null,8,"U",null,8,"U"]
["Music Practice","Internal","Internal","External",90,90,120,300,null,"Music Practice","Exploring Music Products and Styles","Music Skills Development","Responding to a Music Brief",null,9,"U",null,9,"U"]
["Performing Arts","Internal","Internal","External",90,90,120,300,null,"Performing Arts","Exploring the Performing Arts","Developing Skills and Techniques in the Performing Arts","Responding to a Brief",null,10,"U",null,10,"U"]
["Sport","Internal","Internal","External",90,90,120,300,null,"Sport","Preparing Participants to Take Part in Sport and Physical Activity","Taking Part and Improving Other Participants’ Sporting Performance","Developing Fitness to Improve Other Participants’ Performance in Sport and Physical Activity",null,11,"U",null,11,"U"]
["Travel and Tourism","Internal","Internal","External",90,90,120,300,null,"Travel and Tourism","Travel and Tourism Organisations and Destinations","Customer Needs in Travel and Tourism","Influences on Global Travel and Tourism",null,12,"U",null,12,"U"]
[null,null,null,null,null,null,null,null,null,null,null,null,null,null,13,"U",null,13,"U"]
[null,null,null,null,null,null,null,null,null,null,null,null,null,null,14,"U",null,14,"U"]
[null,null,null,null,null,null,null,null,null,null,null,null,null,null,15,"U",null,15,"U"]
[null,null,null,null,null,null,null,null,null,null,null,null,null,null,16,"U",null,16,"U"]
[null,null,null,null,null,null,null,null,null,null,null,null,null,null,17,"U",null,17,"U"]
[null,null,null,null,null,null,null,null,null,null,null,null,null,null,18,"U",null,18,"U"]
[null,null,null,null,null,null,null,null,null,null,null,null,null,null,19,"U",null,19,"U"]
[null,null,null,null,null,null,null,null,null,null,null,null,null,null,20,"U",null,20,"U"]
[null,null,null,null,null,null,null,null,null,null,null,null,null,null,21,"U",null,21,"U"]
[null,null,null,null,null,null,null,null,null,null,null,null,null,null,22,"U",null,22,"U"]
[null,null,null,null,null,null,null,null,null,null,null,null,null,null,23,"U",null,23,"U"]
[null,null,null,null,null,null,null,null,null,null,null,null,null,null,24,"U",null,24,"U"]
[null,null,null,null,null,null,null,null,null,null,null,null,null,null,25,"U",null,25,"U"]
[null,null,null,null,null,null,null,null,null,null,null,null,null,null,26,"U",null,26,"U"]
[null,null,null,null,null,null,null,null,null,null,null,null,null,null,27,"U",null,27,"U"]
[null,null,null,null,null,null,null,null,null,null,null,null,null,null,28,"U",null,28,"U"]
[null,null,null,null,null,null,null,null,null,null,null,null,null,null,29,"U",null,29,"U"]
[null,null,null,null,null,null,null,null,null,null,null,null,null,null,30,"U",null,30,"U"]
[null,null,null,null,null,null,null,null,null,null,null,null,null,null,31,"U",null,31,"U"]
[null,null,null,null,null,null,null,null,null,null,null,null,null,null,32,"U",null,32,"U"]
[null,null,null,null,null,null,null,null,null,null,null,null,null,null,33,"U",null,33,"U"]
[null,null,null,null,null,null,null,null,null,null,null,null,null,null,34,"U",null,34,"U"]
[null,null,null,null,null,null,null,null,null,null,null,null,null,null,35,"U",null,35,"U"]
[null,null,null,null,null,null,null,null,null,null,null,null,null,null,36,"U",null,36,"U"]
[null,null,null,null,null,null,null,null,null,null,null,null,null,null,37,"U",null,37,"U"]
[null,null,null,null,null,null,null,null,null,null,null,null,null,null,38,"U",null,38,"U"]
[null,null,null,null,null,null,null,null,null,null,null,null,null,null,39,"U",null,39,"U"]
[null,null,null,null,null,null,null,null,null,null,null,null,null,null,40,"U",null,40,"U"]
[null,null,null,null,null,null,null,null,null,null,null,null,null,null,41,"U",null,41,"U"]
[null,null,null,null,null,null,null,null,null,null,null,null,null,null,42,"U",null,42,"U"]
[null,null,null,null,null,null,null,null,null,null,null,null,null,null,43,"U",null,43,"U"]
[null,null,null,null,null,null,null,null,null,null,null,null,null,null,44,"U",null,44,"U"]
[null,null,null,null,null,null,null,null,null,null,null,null,null,null,45,"U",null,45,"U"]
[null,null,null,null,null,null,null,null,null,null,null,null,null,null,46,"U",null,46,"U"]
[null,null,null,null,null,null,null,null,null,null,null,null,null,null,47,"U",null,47,"U"]
[null,null,null,null,null,null,null,null,null,null,null,null,null,null,48,"U",null,48,"U"]
[null,null,null,null,null,null,null,null,null,null,null,null,null,null,49,"U",null,49,"U"]
[null,null,null,null,null,null,null,null,null,null,null,null,null,null,50,"U",null,50,"U"]
[null,null,null,null,null,null,null,null,null,null,null,null,null,null,51,"U",null,51,"U"]
[null,null,null,null,null,null,null,null,null,null,null,null,null,null,52,"U",null,52,"U"]
[null,null,null,null,null,null,null,null,null,null,null,null,null,null,53,"U",null,53,"U"]
[null,null,null,null,null,null,null,null,null,null,null,null,null,null,54,"U",null,54,"U"]
[null,null,null,null,null,null,null,null,null,null,null,null,null,null,55,"U",null,55,"U"]
[null,null,null,null,null,null,null,null,null,null,null,null,null,null,56,"U",null,56,"U"]
[null,null,null,null,null,null,null,null,null,null,null,null,null,null,57,"U",null,57,"U"]
[null,null,null,null,null,null,null,null,null,null,null,null,null,null,58,"U",null,58,"U"]
[null,null,null,null,null,null,null,null,null,null,null,null,null,null,59,"U",null,59,"U"]
[null,null,null,null,null,null,null,null,null,null,null,null,null,null,60,"U",null,60,"L1P"]
[null,null,null,null,null,null,null,null,null,null,null,null,null,null,61,"U",null,61,"L1P"]
[null,null,null,null,null,null,null,null,null,null,null,null,null,null,62,"U",null,62,"L1P"]
[null,null,null,null,null,null,null,null,null,null,null,null,null,null,63,"U",null,63,"L1P"]
[null,null,null,null,null,null,null,null,null,null,null,null,null,null,64,"U",null,64,"L1P"]
[null,null,null,null,null,null,null,null,null,null,null,null,null,null,65,"U",null,65,"L1P"]
[null,null,null,null,null,null,null,null,null,null,null,null,null,null,66,"U",null,66,"L1P"]
[null,null,null,null,null,null,null,null,null,null,null,null,null,null,67,"U",null,67,"L1P"]
[null,null,null,null,null,null,null,null,null,null,null,null,null,null,68,"U",null,68,"L1P"]
[null,null,null,null,null,null,null,null,null,null,null,null,null,null,69,"U",null,69,"L1P"]
[null,null,null,null,null,null,null,null,null,null,null,null,null,null,70,"U",null,70,"L1P"]
[null,null,null,null,null,null,null,null,null,null,null,null,null,null,71,"U",null,71,"L1P"]
[null,null,null,null,null,null,null,null,null,null,null,null,null,null,72,"U",null,72,"L1P"]
[null,null,null,null,null,null,null,null,null,null,null,null,null,null,73,"U",null,73,"L1P"]
[null,null,null,null,null,null,null,null,null,null,null,null,null,null,74,"U",null,74,"L1P"]
[null,null,null,null,null,null,null,null,null,null,null,null,null,null,75,"U",null,75,"L1P"]
[null,null,null,null,null,null,null,null,null,null,null,null,null,null,76,"U",null,76,"L1P"]
[null,null,null,null,null,null,null,null,null,null,null,null,null,null,77,"U",null,77,"L1P"]
[null,null,null,null,null,null,null,null,null,null,null,null,null,null,78,"U",null,78,"L1P"]
[null,null,null,null,null,null,null,null,null,null,null,null,null,null,79,"U",null,79,"L1P"]
[null,null,null,null,null,null,null,null,null,null,null,null,null,null,80,"U",null,80,"L1M"]
[null,null,null,null,null,null,null,null,null,null,null,null,null,null,81,"U",null,81,"L1M"]
[null,null,null,null,null,null,null,null,null,null,null,null,null,null,82,"U",null,82,"L1M"]
[null,null,null,null,null,null,null,null,null,null,null,null,null,null,83,"U",null,83,"L1M"]
[null,null,null,null,null,null,null,null,null,null,null,null,null,null,84,"U",null,84,"L1M"]
[null,null,null,null,null,null,null,null,null,null,null,null,null,null,85,"U",null,85,"L1M"]
[null,null,null,null,null,null,null,null,null,null,null,null,null,null,86,"U",null,86,"L1M"]
[null,null,null,null,null,null,null,null,null,null,null,null,null,null,87,"U",null,87,"L1M"]
[null,null,null,null,null,null,null,null,null,null,null,null,null,null,88,"U",null,88,"L1M"]
[null,null,null,null,null,null,null,null,null,null,null,null,null,null,89,"U",null,89,"L1M"]
[null,null,null,null,null,null,null,null,null,null,null,null,null,null,90,"L1P",null,90,"L1M"]
[null,null,null,null,null,null,null,null,null,null,null,null,null,null,91,"L1P",null,91,"L1M"]
[null,null,null,null,null,null,null,null,null,null,null,null,null,null,92,"L1P",null,92,"L1M"]
[null,null,null,null,null,null,null,null,null,null,null,null,null,null,93,"L1P",null,93,"L1M"]
[null,null,null,null,null,null,null,null,null,null,null,null,null,null,94,"L1P",null,94,"L1M"]
[null,null,null,null,null,null,null,null,null,null,null,null,null,null,95,"L1P",null,95,"L1M"]
[null,null,null,null,null,null,null,null,null,null,null,null,null,null,96,"L1P",null,96,"L1M"]
[null,null,null,null,null,null,null,null,null,null,null,null,null,null,97,"L1P",null,97,"L1M"]
[null,null,null,null,null,null,null,null,null,null,null,null,null,null,98,"L1P",null,98,"L1M"]
[null,null,null,null,null,null,null,null,null,null,null,null,null,null,99,"L1P",null,99,"L1M"]
[null,null,null,null,null,null,null,null,null,null,null,null,null,null,100,"L1P",null,100,"L1D"]
[null,null,null,null,null,null,null,null,null,null,null,null,null,null,101,"L1P",null,101,"L1D"]
[null,null,null,null,null,null,null,null,null,null,null,null,null,null,102,"L1P",null,102,"L1D"]
[null,null,null,null,null,null,null,null,null,null,null,null,null,null,103,"L1P",null,103,"L1D"]
[null,null,null,null,null,null,null,null,null,null,null,null,null,null,104,"L1P",null,104,"L1D"]
[null,null,null,null,null,null,null,null,null,null,null,null,null,null,105,"L1P",null,105,"L1D"]
[null,null,null,null,null,null,null,null,null,null,null,null,null,null,106,"L1P",null,106,"L1D"]
[null,null,null,null,null,null,null,null,null,null,null,null,null,null,107,"L1P",null,107,"L1D"]
[null,null,null,null,null,null,null,null,null,null,null,null,null,null,108,"L1P",null,108,"L1D"]
[null,null,null,null,null,null,null,null,null,null,null,null,null,null,109,"L1P",null,109,"L1D"]
[null,null,null,null,null,null,null,null,null,null,null,null,null,null,110,"L1P",null,110,"L1D"]
[null,null,null,null,null,null,null,null,null,null,null,null,null,null,111,"L1P",null,111,"L1D"]
[null,null,null,null,null,null,null,null,null,null,null,null,null,null,112,"L1P",null,112,"L1D"]
[null,null,null,null,null,null,null,null,null,null,null,null,null,null,113,"L1P",null,113,"L1D"]
[null,null,null,null,null,null,null,null,null,null,null,null,null,null,114,"L1P",null,114,"L1D"]
[null,null,null,null,null,null,null,null,null,null,null,null,null,null,115,"L1P",null,115,"L1D"]
[null,null,null,null,null,null,null,null,null,null,null,null,null,null,116,"L1P",null,116,"L1D"]
[null,null,null,null,null,null,null,null,null,null,null,null,null,null,117,"L1P",null,117,"L1D"]
[null,null,null,null,null,null,null,null,null,null,null,null,null,null,118,"L1P",null,118,"L1D"]
[null,null,null,null,null,null,null,null,null,null,null,null,null,null,119,"L1P",null,119,"L1D"]
[null,null,null,null,null,null,null,null,null,null,null,null,null,null,120,"L1M",null,120,"L2P"]
[null,null,null,null,null,null,null,null,null,null,null,null,null,null,121,"L1M",null,121,"L2P"]
[null,null,null,null,null,null,null,null,null,null,null,null,null,null,122,"L1M",null,122,"L2P"]
[null,null,null,null,null,null,null,null,null,null,null,null,null,null,123,"L1M",null,123,"L2P"]
[null,null,null,null,null,null,null,null,null,null,null,null,null,null,124,"L1M",null,124,"L2P"]
[null,null,null,null,null,null,null,null,null,null,null,null,null,null,125,"L1M",null,125,"L2P"]
[null,null,null,null,null,null,null,null,null,null,null,null,null,null,126,"L1M",null,126,"L2P"]
[null,null,null,null,null,null,null,null,null,null,null,null,null,null,127,"L1M",null,127,"L2P"]
[null,null,null,null,null,null,null,null,null,null,null,null,null,null,128,"L1M",null,128,"L2P"]
[null,null,null,null,null,null,null,null,null,null,null,null,null,null,129,"L1M",null,129,"L2P"]
[null,null,null,null,null,null,null,null,null,null,null,null,null,null,130,"L1M",null,130,"L2P"]
[null,null,null,null,null,null,null,null,null,null,null,null,null,null,131,"L1M",null,131,"L2P"]
[null,null,null,null,null,null,null,null,null,null,null,null,null,null,132,"L1M",null,132,"L2P"]
[null,null,null,null,null,null,null,null,null,null,null,null,null,null,133,"L1M",null,133,"L2P"]
[null,null,null,null,null,null,null,null,null,null,null,null,null,null,134,"L1M",null,134,"L2P"]
[null,null,null,null,null,null,null,null,null,null,null,null,null,null,135,"L1M",null,135,"L2P"]
[null,null,null,null,null,null,null,null,null,null,null,null,null,null,136,"L1M",null,136,"L2P"]
[null,null,null,null,null,null,null,null,null,null,null,null,null,null,137,"L1M",null,137,"L2P"]
[null,null,null,null,null,null,null,null,null,null,null,null,null,null,138,"L1M",null,138,"L2P"]
[null,null,null,null,null,null,null,null,null,null,null,null,null,null,139,"L1M",null,139,"L2P"]
[null,null,null,null,null,null,null,null,null,null,null,null,null,null,140,"L1M",null,140,"L2M"]
[null,null,null,null,null,null,null,null,null,null,null,null,null,null,141,"L1M",null,141,"L2M"]
[null,null,null,null,null,null,null,null,null,null,null,null,null,null,142,"L1M",null,142,"L2M"]
[null,null,null,null,null,null,null,null,null,null,null,null,null,null,143,"L1M",null,143,"L2M"]
[null,null,null,null,null,null,null,null,null,null,null,null,null,null,144,"L1M",null,144,"L2M"]
[null,null,null,null,null,null,null,null,null,null,null,null,null,null,145,"L1M",null,145,"L2M"]
[null,null,null,null,null,null,null,null,null,null,null,null,null,null,146,"L1M",null,146,"L2M"]
[null,null,null,null,null,null,null,null,null,null,null,null,null,null,147,"L1M",null,147,"L2M"]
[null,null,null,null,null,null,null,null,null,null,null,null,null,null,148,"L1M",null,148,"L2M"]
[null,null,null,null,null,null,null,null,null,null,null,null,null,null,149,"L1M",null,149,"L2M"]
[null,null,null,null,null,null,null,null,null,null,null,null,null,null,150,"L1D",null,150,"L2M"]
[null,null,null,null,null,null,null,null,null,null,null,null,null,null,151,"L1D",null,151,"L2M"]
[null,null,null,null,null,null,null,null,null,null,null,null,null,null,152,"L1D",null,152,"L2M"]
[null,null,null,null,null,null,null,null,null,null,null,null,null,null,153,"L1D",null,153,"L2M"]
[null,null,null,null,null,null,null,null,null,null,null,null,null,null,154,"L1D",null,154,"L2M"]
[null,null,null,null,null,null,null,null,null,null,null,null,null,null,155,"L1D",null,155,"L2M"]
[null,null,null,null,null,null,null,null,null,null,null,null,null,null,156,"L1D",null,156,"L2M"]
[null,null,null,null,null,null,null,null,null,null,null,null,null,null,157,"L1D",null,157,"L2M"]
[null,null,null,null,null,null,null,null,null,null,null,null,null,null,158,"L1D",null,158,"L2M"]
[null,null,null,null,null,null,null,null,null,null,null,null,null,null,159,"L1D",null,159,"L2M"]
[null,null,null,null,null,null,null,null,null,null,null,null,null,null,160,"L1D",null,160,"L2D"]
[null,null,null,null,null,null,null,null,null,null,null,null,null,null,161,"L1D",null,161,"L2D"]
[null,null,null,null,null,null,null,null,null,null,null,null,null,null,162,"L1D",null,162,"L2D"]
[null,null,null,null,null,null,null,null,null,null,null,null,null,null,163,"L1D",null,163,"L2D"]
[null,null,null,null,null,null,null,null,null,null,null,null,null,null,164,"L1D",null,164,"L2D"]
[null,null,null,null,null,null,null,null,null,null,null,null,null,null,165,"L1D",null,165,"L2D"]
[null,null,null,null,null,null,null,null,null,null,null,null,null,null,166,"L1D",null,166,"L2D"]
[null,null,null,null,null,null,null,null,null,null,null,null,null,null,167,"L1D",null,167,"L2D"]
[null,null,null,null,null,null,null,null,null,null,null,null,null,null,168,"L1D",null,168,"L2D"]
[null,null,null,null,null,null,null,null,null,null,null,null,null,null,169,"L1D",null,169,"L2D"]
[null,null,null,null,null,null,null,null,null,null,null,null,null,null,170,"L1D",null,170,"L2D"]
[null,null,null,null,null,null,null,null,null,null,null,null,null,null,171,"L1D",null,171,"L2D"]
[null,null,null,null,null,null,null,null,null,null,null,null,null,null,172,"L1D",null,172,"L2D"]
[null,null,null,null,null,null,null,null,null,null,null,null,null,null,173,"L1D",null,173,"L2D"]
[null,null,null,null,null,null,null,null,null,null,null,null,null,null,174,"L1D",null,174,"L2D"]
[null,null,null,null,null,null,null,null,null,null,null,null,null,null,175,"L1D",null,175,"L2D"]
[null,null,null,null,null,null,null,null,null,null,null,null,null,null,176,"L1D",null,176,"L2D"]
[null,null,null,null,null,null,null,null,null,null,null,null,null,null,177,"L1D",null,177,"L2D"]
[null,null,null,null,null,null,null,null,null,null,null,null,null,null,178,"L1D",null,178,"L2D"]
[null,null,null,null,null,null,null,null,null,null,null,null,null,null,179,"L1D",null,179,"L2D"]
[null,null,null,null,null,null,null,null,null,null,null,null,null,null,180,"L2P",null,180,"L2D*"]
[null,null,null,null,null,null,null,null,null,null,null,null,null,null,181,"L2P",null,181,"L2D*"]
[null,null,null,null,null,null,null,null,null,null,null,null,null,null,182,"L2P",null,182,"L2D*"]
[null,null,null,null,null,null,null,null,null,null,null,null,null,null,183,"L2P",null,183,"L2D*"]
[null,null,null,null,null,null,null,null,null,null,null,null,null,null,184,"L2P",null,184,"L2D*"]
[null,null,null,null,null,null,null,null,null,null,null,null,null,null,185,"L2P",null,185,"L2D*"]
[null,null,null,null,null,null,null,null,null,null,null,null,null,null,186,"L2P",null,186,"L2D*"]
[null,null,null,null,null,null,null,null,null,null,null,null,null,null,187,"L2P",null,187,"L2D*"]
[null,null,null,null,null,null,null,null,null,null,null,null,null,null,188,"L2P",null,188,"L2D*"]
[null,null,null,null,null,null,null,null,null,null,null,null,null,null,189,"L2P",null,189,"L2D*"]
[null,null,null,null,null,null,null,null,null,null,null,null,null,null,190,"L2P",null,190,"L2D*"]
[null,null,null,null,null,null,null,null,null,null,null,null,null,null,191,"L2P",null,191,"L2D*"]
[null,null,null,null,null,null,null,null,null,null,null,null,null,null,192,"L2P",null,192,"L2D*"]
[null,null,null,null,null,null,null,null,null,null,null,null,null,null,193,"L2P",null,193,"L2D*"]
[null,null,null,null,null,null,null,null,null,null,null,null,null,null,194,"L2P",null,194,"L2D*"]
[null,null,null,null,null,null,null,null,null,null,null,null,null,null,195,"L2P",null,195,"L2D*"]
[null,null,null,null,null,null,null,null,null,null,null,null,null,null,196,"L2P",null,196,"L2D*"]
[null,null,null,null,null,null,null,null,null,null,null,null,null,null,197,"L2P",null,197,"L2D*"]
[null,null,null,null,null,null,null,null,null,null,null,null,null,null,198,"L2P",null,198,"L2D*"]
[null,null,null,null,null,null,null,null,null,null,null,null,null,null,199,"L2P",null,199,"L2D*"]
[null,null,null,null,null,null,null,null,null,null,null,null,null,null,200,"L2P",null,200,"L2D*"]
[null,null,null,null,null,null,null,null,null,null,null,null,null,null,201,"L2P"]
[null,null,null,null,null,null,null,null,null,null,null,null,null,null,202,"L2P"]
[null,null,null,null,null,null,null,null,null,null,null,null,null,null,203,"L2P"]
[null,null,null,null,null,null,null,null,null,null,null,null,null,null,204,"L2P"]
[null,null,null,null,null,null,null,null,null,null,null,null,null,null,205,"L2P"]
[null,null,null,null,null,null,null,null,null,null,null,null,null,null,206,"L2P"]
[null,null,null,null,null,null,null,null,null,null,null,null,null,null,207,"L2P"]
[null,null,null,null,null,null,null,null,null,null,null,null,null,null,208,"L2P"]
[null,null,null,null,null,null,null,null,null,null,null,null,null,null,209,"L2P"]
[null,null,null,null,null,null,null,null,null,null,null,null,null,null,210,"L2M"]
[null,null,null,null,null,null,null,null,null,null,null,null,null,null,211,"L2M"]
[null,null,null,null,null,null,null,null,null,null,null,null,null,null,212,"L2M"]
[null,null,null,null,null,null,null,null,null,null,null,null,null,null,213,"L2M"]
[null,null,null,null,null,null,null,null,null,null,null,null,null,null,214,"L2M"]
[null,null,null,null,null,null,null,null,null,null,null,null,null,null,215,"L2M"]
[null,null,null,null,null,null,null,null,null,null,null,null,null,null,216,"L2M"]
[null,null,null,null,null,null,null,null,null,null,null,null,null,null,217,"L2M"]
[null,null,null,null,null,null,null,null,null,null,null,null,null,null,218,"L2M"]
[null,null,null,null,null,null,null,null,null,null,null,null,null,null,219,"L2M"]
[null,null,null,null,null,null,null,null,null,null,null,null,null,null,220,"L2M"]
[null,null,null,null,null,null,null,null,null,null,null,null,null,null,221,"L2M"]
[null,null,null,null,null,null,null,null,null,null,null,null,null,null,222,"L2M"]
[null,null,null,null,null,null,null,null,null,null,null,null,null,null,223,"L2M"]
[null,null,null,null,null,null,null,null,null,null,null,null,null,null,224,"L2M"]
[null,null,null,null,null,null,null,null,null,null,null,null,null,null,225,"L2M"]
[null,null,null,null,null,null,null,null,null,null,null,null,null,null,226,"L2M"]
[null,null,null,null,null,null,null,null,null,null,null,null,null,null,227,"L2M"]
[null,null,null,null,null,null,null,null,null,null,null,null,null,null,228,"L2M"]
[null,null,null,null,null,null,null,null,null,null,null,null,null,null,229,"L2M"]
[null,null,null,null,null,null,null,null,null,null,null,null,null,null,230,"L2M"]
[null,null,null,null,null,null,null,null,null,null,null,null,null,null,231,"L2M"]
[null,null,null,null,null,null,null,null,null,null,null,null,null,null,232,"L2M"]
[null,null,null,null,null,null,null,null,null,null,null,null,null,null,233,"L2M"]
[null,null,null,null,null,null,null,null,null,null,null,null,null,null,234,"L2M"]
[null,null,null,null,null,null,null,null,null,null,null,null,null,null,235,"L2M"]
[null,null,null,null,null,null,null,null,null,null,null,null,null,null,236,"L2M"]
[null,null,null,null,null,null,null,null,null,null,null,null,null,null,237,"L2M"]
[null,null,null,null,null,null,null,null,null,null,null,null,null,null,238,"L2M"]
[null,null,null,null,null,null,null,null,null,null,null,null,null,null,239,"L2M"]
[null,null,null,null,null,null,null,null,null,null,null,null,null,null,240,"L2D"]
[null,null,null,null,null,null,null,null,null,null,null,null,null,null,241,"L2D"]
[null,null,null,null,null,null,null,null,null,null,null,null,null,null,242,"L2D"]
[null,null,null,null,null,null,null,null,null,null,null,null,null,null,243,"L2D"]
[null,null,null,null,null,null,null,null,null,null,null,null,null,null,244,"L2D"]
[null,null,null,null,null,null,null,null,null,null,null,null,null,null,245,"L2D"]
[null,null,null,null,null,null,null,null,null,null,null,null,null,null,246,"L2D"]
[null,null,null,null,null,null,null,null,null,null,null,null,null,null,247,"L2D"]
[null,null,null,null,null,null,null,null,null,null,null,null,null,null,248,"L2D"]
[null,null,null,null,null,null,null,null,null,null,null,null,null,null,249,"L2D"]
[null,null,null,null,null,null,null,null,null,null,null,null,null,null,250,"L2D"]
[null,null,null,null,null,null,null,null,null,null,null,null,null,null,251,"L2D"]
[null,null,null,null,null,null,null,null,null,null,null,null,null,null,252,"L2D"]
[null,null,null,null,null,null,null,null,null,null,null,null,null,null,253,"L2D"]
[null,null,null,null,null,null,null,null,null,null,null,null,null,null,254,"L2D"]
[null,null,null,null,null,null,null,null,null,null,null,null,null,null,255,"L2D"]
[null,null,null,null,null,null,null,null,null,null,null,null,null,null,256,"L2D"]
[null,null,null,null,null,null,null,null,null,null,null,null,null,null,257,"L2D"]
[null,null,null,null,null,null,null,null,null,null,null,null,null,null,258,"L2D"]
[null,null,null,null,null,null,null,null,null,null,null,null,null,null,259,"L2D"]
[null,null,null,null,null,null,null,null,null,null,null,null,null,null,260,"L2D"]
[null,null,null,null,null,null,null,null,null,null,null,null,null,null,261,"L2D"]
[null,null,null,null,null,null,null,null,null,null,null,null,null,null,262,"L2D"]
[null,null,null,null,null,null,null,null,null,null,null,null,null,null,263,"L2D"]
[null,null,null,null,null,null,null,null,null,null,null,null,null,null,264,"L2D"]
[null,null,null,null,null,null,null,null,null,null,null,null,null,null,265,"L2D"]
[null,null,null,null,null,null,null,null,null,null,null,null,null,null,266,"L2D"]
[null,null,null,null,null,null,null,null,null,null,null,null,null,null,267,"L2D"]
[null,null,null,null,null,null,null,null,null,null,null,null,null,null,268,"L2D"]
[null,null,null,null,null,null,null,null,null,null,null,null,null,null,269,"L2D"]
[null,null,null,null,null,null,null,null,null,null,null,null,null,null,270,"L2D*"]
[null,null,null,null,null,null,null,null,null,null,null,null,null,null,271,"L2D*"]
[null,null,null,null,null,null,null,null,null,null,null,null,null,null,272,"L2D*"]
[null,null,null,null,null,null,null,null,null,null,null,null,null,null,273,"L2D*"]
[null,null,null,null,null,null,null,null,null,null,null,null,null,null,274,"L2D*"]
[null,null,null,null,null,null,null,null,null,null,null,null,null,null,275,"L2D*"]
[null,null,null,null,null,null,null,null,null,null,null,null,null,null,276,"L2D*"]
[null,null,null,null,null,null,null,null,null,null,null,null,null,null,277,"L2D*"]
[null,null,null,null,null,null,null,null,null,null,null,null,null,null,278,"L2D*"]
[null,null,null,null,null,null,null,null,null,null,null,null,null,null,279,"L2D*"]
[null,null,null,null,null,null,null,null,null,null,null,null,null,null,280,"L2D*"]
[null,null,null,null,null,null,null,null,null,null,null,null,null,null,281,"L2D*"]
[null,null,null,null,null,null,null,null,null,null,null,null,null,null,282,"L2D*"]
[null,null,null,null,null,null,null,null,null,null,null,null,null,null,283,"L2D*"]
[null,null,null,null,null,null,null,null,null,null,null,null,null,null,284,"L2D*"]
[null,null,null,null,null,null,null,null,null,null,null,null,null,null,285,"L2D*"]
[null,null,null,null,null,null,null,null,null,null,null,null,null,null,286,"L2D*"]
[null,null,null,null,null,null,null,null,null,null,null,null,null,null,287,"L2D*"]
[null,null,null,null,null,null,null,null,null,null,null,null,null,null,288,"L2D*"]
[null,null,null,null,null,null,null,null,null,null,null,null,null,null,289,"L2D*"]
[null,null,null,null,null,null,null,null,null,null,null,null,null,null,290,"L2D*"]
[null,null,null,null,null,null,null,null,null,null,null,null,null,null,291,"L2D*"]
[null,null,null,null,null,null,null,null,null,null,null,null,null,null,292,"L2D*"]
[null,null,null,null,null,null,null,null,null,null,null,null,null,null,293,"L2D*"]
[null,null,null,null,null,null,null,null,null,null,null,null,null,null,294,"L2D*"]
[null,null,null,null,null,null,null,null,null,null,null,null,null,null,295,"L2D*"]
[null,null,null,null,null,null,null,null,null,null,null,null,null,null,296,"L2D*"]
[null,null,null,null,null,null,null,null,null,null,null,null,null,null,297,"L2D*"]
[null,null,null,null,null,null,null,null,null,null,null,null,null,null,298,"L2D*"]
[null,null,null,null,null,null,null,null,null,null,null,null,null,null,299,"L2D*"]
[null,null,null,null,null,null,null,null,null,null,null,null,null,null,300,"L2D*"]